[Event "Cracovia Festival-A 2023"]
[Site "Krakow"]
[Date "2024.01.03"]
[Round "8.39"]
[White "Yezhel, Valiantsin"]
[Black "Manko, Mariia"]
[Result "1/2-1/2"]
[ECO "D00"]
[WhiteElo "2311"]
[BlackElo "2128"]
[Annotator "RC"]
[PlyCount "150"]
[EventDate "2023.12.24"]
[EventType "swiss"]
[EventCountry "POL"]
[SourceTitle "playchess.com"]
[Source "ChessBase"]
[SourceQuality "1"]
[TimeControl "40/5400+30:1800+30"]

1. d4 {[%emt 0:01:46]} d5 {[%emt 0:00:06]} 2. Bf4 {[%emt 0:00:50]} c5 {[%emt 0:01:44]} 3. e3 {[%emt 0:00:02]} Nc6 {[%emt 0:01:41]} 4. Nf3 {[%emt 0:06:45]} Nf6 {[%emt 0:02:58]} 5. Nbd2 {[%emt 0:01:05]} Bf5 {[%emt 0:00:37]} 6. dxc5 {[%emt 0:03:47]} Nh5 {[%emt 0:16:30]} 7. Bg5 {[%emt 0:08:45]} h6 {[%emt 0:02:48]} 8. Bh4 {[%emt 0:00:02]} g5 {[%emt 0:00:41]} 9. Nd4 {[%emt 0:01:17]} Bg6 {[%emt 0:04:38]} 10. Be2 {[%emt 0:01:30]} Nxd4 {[%emt 0:03:55]} 11. exd4 {[%emt 0:01:18]} Nf6 {[%emt 0:07:56]} 12. Bg3 {[%emt 0:01:09]} Nd7 {[%emt 0:08:47]} 13. c3 {[%emt 0:01:47]} Bg7 {[%emt 0:00:16]} 14. Qb3 {[%emt 0:00:04]} f5 {[%emt 0:07:26]} 15. Bd3 {[%emt 0:05:27]} Kf7 {[%emt 0:01:26]} 16. f4 {[%emt 0:01:50]} Nf6 {[%emt 0:03:38]} 17. fxg5 {[%emt 0:02:31]} hxg5 {[%emt 0:00:12]} 18. Nf3 {[%emt 0:00:19]} Nh5 {[%emt 0:05:17]} 19. Ne5+ {[%emt 0:02:55]} Bxe5 {[%emt 0:04:04]} 20. Bxe5 {[%emt 0:00:04]} Qd7 {[%emt 0:00:10]} 21. Bxh8 {[%emt 0:00:58]} Rxh8 {[%emt 0:00:06]} 22. O-O-O {[%emt 0:00:24]} Nf6 {[%emt 0:01:51]} 23. h3 {[%emt 0:05:07]} Qc7 {[%emt 0:05:05]} 24. Rhf1 {[%emt 0:00:59]} e6 {[%emt 0:01:00]} 25. c4 {[%emt 0:00:37]} f4 {[%emt 0:03:10]} 26. cxd5 {[%emt 0:01:43]} Nxd5 {[%emt 0:01:32]} 27. Rde1 {[%emt 0:02:16]} Bxd3 {[%emt 0:02:29]} 28. Qxd3 {[%emt 0:00:02]} b6 {[%emt 0:00:20]} 29. Qe4 {[%emt 0:00:16]} Re8 {[%emt 0:00:59]} 30. Qc2 {[%emt 0:10:46]} Kg7 {[%emt 0:04:14]} 31. cxb6 {[%emt 0:01:18]} Qxb6 {[%emt 0:00:54]} 32. Qc5 {[%emt 0:00:09]} Qa6 {[%emt 0:00:22]} 33. Kb1 {[%emt 0:00:33]} Rh8 {[%emt 0:01:11]} 34. Rc1 {[%emt 0:01:18]} Rb8 {[%emt 0:02:13]} 35. Rfe1 {[%emt 0:01:35]} Rb6 {[%emt 0:02:41]} 36. Re5 {[%emt 0:02:10]} Qd3+ {[%emt 0:02:41]} 37. Ka1 {[%emt 0:00:02]} Qd2 {[%emt 0:00:17]} 38. Qc2 {[%emt 0:01:14]} Qxd4 {[%emt 0:01:35]} 39. Rxg5+ {[%emt 0:00:19]} Kf8 {[%emt 0:01:00]} 40. Rh5 {[%emt 0:00:00]} Ke7 {[%emt 0:00:00]} 41. Rh7+ {[%emt 0:07:40]} Kf6 {[%emt 0:12:45]} 42. Rf7+ {[%emt 0:08:29]} Kxf7 {[%emt 0:01:50]} 43. Qh7+ {[%emt 0:00:35]} Qg7 {[%emt 0:00:11]} 44. Qh5+ {[%emt 0:00:12]} Ke7 {[%emt 0:01:40]} 45. Rc2 {[%emt 0:00:27]} Qd4 {[%emt 0:02:01]} 46. a3 {[%emt 0:01:46]} Qd3 {[%emt 0:01:19]} 47. Qg5+ {[%emt 0:00:22]} Kf7 {[%emt 0:01:57]} 48. Qh5+ {[%emt 0:00:41]} Qg6 {[%emt 0:00:17]} 49. Qe2 {[%emt 0:00:04]} Rb7 {[%emt 0:03:48]} 50. Rc8 {[%emt 0:00:21]} Rc7 {[%emt 0:04:38]} 51. Rxc7+ {[%emt 0:00:41]} Nxc7 {[%emt 0:00:05]} 52. Qf2 {[%emt 0:00:13]} Qe4 {[%emt 0:01:55]} 53. Qxa7 {[%emt 0:00:05]} Qe1+ {[%emt 0:00:36]} 54. Ka2 {[%emt 0:00:04]} Qe5 {[%emt 0:00:08]} 55. a4 {[%emt 0:00:05]} Kf6 {[%emt 0:00:23]} 56. a5 {[%emt 0:00:44]} Qd5+ {[%emt 0:01:41]} 57. Kb1 {[%emt 0:00:25]} Qd1+ {[%emt 0:00:12]} 58. Ka2 {[%emt 0:00:04]} Qa4+ {[%emt 0:00:07]} 59. Kb1 {[%emt 0:00:04]} Nd5 {[%emt 0:00:37]} 60. Qc5 {[%emt 0:00:13]} Qe4+ {[%emt 0:00:36]} 61. Ka2 {[%emt 0:00:03]} Qxg2 {[%emt 0:01:51]} 62. a6 {[%emt 0:00:13]} Qe4 {[%emt 0:01:10]} 63. a7 {[%emt 0:00:10]} Qa4+ {[%emt 0:00:39]} 64. Kb1 {[%emt 0:00:03]} Ne7 {[%emt 0:01:03]} 65. b4 {[%emt 0:03:03]} f3 {[%emt 0:01:25]} 66. Qc3+ {[%emt 0:01:31]} Kg6 {[%emt 0:00:21]} 67. Qc2+ {[%emt 0:04:53]} Qxc2+ {[%emt 0:00:05]} 68. Kxc2 {[%emt 0:00:01]} f2 {[%emt 0:00:07]} 69. a8=Q {[%emt 0:00:05]} f1=Q {[%emt 0:00:07]} 70. Qe8+ {[%emt 0:00:07]} Qf7 {[%emt 0:00:10]} 71. Qxf7+ {[%emt 0:00:34]} Kxf7 {[%emt 0:00:03]} 72. Kd3 {[%emt 0:00:21]} e5 {[%emt 0:00:56]} 73. Kc4 {[%emt 0:01:46]} Ke6 {[%emt 0:00:24]} 74. h4 {[%emt 0:02:55]} Kf5 {[%emt 0:00:07]} 75. h5 {[%emt 0:00:43]} e4 {[%emt 0:03:16]} 1/2-1/2

[Event "Cracovia Festival-A 2023"]
[Site "Krakow"]
[Date "2024.01.03"]
[Round "8.40"]
[White "Meurs, Tom"]
[Black "Kaim, Piotr"]
[Result "1-0"]
[ECO "B76"]
[WhiteElo "2290"]
[BlackElo "2127"]
[Annotator "ChessBase"]
[PlyCount "73"]
[EventDate "2023.12.24"]
[EventType "swiss"]
[EventCountry "POL"]
[SourceTitle "playchess.com"]
[Source "ChessBase"]
[SourceQuality "1"]
[TimeControl "40/5400+30:1800+30"]

1. e4 {[%emt 0:00:39]} c5 {[%emt 0:03:58]} 2. Nf3 {[%emt 0:00:10]} d6 {[%emt 0:00:19]} 3. d4 {[%emt 0:00:06]} cxd4 {[%emt 0:00:29]} 4. Nxd4 {[%emt 0:00:07]} Nf6 {[%emt 0:00:16]} 5. Nc3 {[%emt 0:00:08]} g6 {[%emt 0:00:57]} 6. Be3 {[%emt 0:00:27]} Bg7 {[%emt 0:00:22]} 7. f3 {[%emt 0:00:06]} Nc6 {[%emt 0:00:37]} 8. Qd2 {[%emt 0:00:06]} O-O {[%emt 0:00:29]} 9. O-O-O {[%emt 0:00:12]} d5 {[%emt 0:00:39]} 10. exd5 {[%emt 0:02:18]} Nxd5 {[%emt 0:00:08]} 11. Nxc6 {[%emt 0:00:08]} bxc6 {[%emt 0:00:06]} 12. Bd4 {[%emt 0:00:19]} Bxd4 {[%emt 0:00:13]} 13. Qxd4 {[%emt 0:00:13]} Qb6 {[%emt 0:00:15]} 14. Na4 {[%emt 0:06:38]} Qc7 {[%emt 0:05:31]} 15. Bc4 {[%emt 0:01:40]} Nb6 {[%emt 0:06:33]} 16. Bb3 {[%emt 0:02:42]} Bf5 {[%emt 0:03:38]} 17. Rde1 {[%emt 0:07:00]} Nxa4 {[%emt 0:09:54]} 18. Qxa4 {[%emt 0:01:51]} Rad8 {[%emt 0:08:15]} 19. g4 {[%emt 0:01:16]} Bc8 {[%emt 0:00:57]} 20. Qe4 {[%emt 0:03:14]} Rd7 {[%emt 0:06:12]} 21. h4 {[%emt 0:06:20]} c5 {[%emt 0:11:14]} 22. h5 {[%emt 0:11:39]} g5 {[%emt 0:04:12]} 23. h6 {[%emt 0:09:41]} Qf4+ {[%emt 0:15:38]} 24. Qxf4 {[%emt 0:02:05]} gxf4 {[%emt 0:00:03]} 25. Re4 {[%emt 0:02:15]} Bb7 {[%emt 0:06:48]} 26. Rxf4 {[%emt 0:02:07]} e6 {[%emt 0:01:39]} 27. Rh5 {[%emt 0:04:58]} Rd4 {[%emt 0:05:06]} 28. Rxd4 {[%emt 0:11:53]} cxd4 {[%emt 0:00:02]} 29. f4 {[%emt 0:00:20]} Rd8 {[%emt 0:04:58]} 30. Rg5+ {[%emt 0:00:25]} Kf8 {[%emt 0:00:23]} 31. Rg7 {[%emt 0:00:37]} Be4 {[%emt 0:00:44]} 32. f5 {[%emt 0:00:14]} d3 {[%emt 0:01:12]} 33. cxd3 {[%emt 0:00:14]} Rxd3 {[%emt 0:01:54]} 34. fxe6 {[%emt 0:04:43]} fxe6 {[%emt 0:00:26]} 35. Bc2 {[%emt 0:02:19]} Rd4 {[%emt 0:00:11]} 36. Bxe4 {[%emt 0:00:47]} Rxe4 {[%emt 0:00:04]} 37. Rxh7 {[%emt 0:00:27]} 1-0

[Event "Cracovia Festival-A 2023"]
[Site "Krakow"]
[Date "2024.01.03"]
[Round "8.41"]
[White "Marszalek, Maciej"]
[Black "Pacuszka, Tomasz"]
[Result "1/2-1/2"]
[ECO "E06"]
[WhiteElo "2269"]
[BlackElo "2124"]
[Annotator "RC"]
[PlyCount "28"]
[EventDate "2023.12.24"]
[EventType "swiss"]
[EventCountry "POL"]
[SourceTitle "playchess.com"]
[Source "ChessBase"]
[SourceQuality "1"]
[TimeControl "40/5400+30:1800+30"]

1. d4 {[%emt 0:00:10]} d5 {[%emt 0:00:48]} 2. c4 {[%emt 0:00:04]} e6 {[%emt 0:00:05]} 3. Nf3 {[%emt 0:00:04]} Nf6 {[%emt 0:00:07]} 4. g3 {[%emt 0:00:03]} Be7 {[%emt 0:00:08]} 5. Bg2 {[%emt 0:00:05]} O-O {[%emt 0:00:07]} 6. O-O {[%emt 0:00:04]} c6 {[%emt 0:00:06]} 7. Nbd2 {[%emt 0:00:50]} b6 {[%emt 0:00:10]} 8. Qc2 {[%emt 0:00:02]} Bb7 {[%emt 0:00:10]} 9. e4 {[%emt 0:00:57]} Na6 {[%emt 0:00:35]} 10. a3 {[%emt 0:00:19]} c5 {[%emt 0:01:42]} 11. exd5 {[%emt 0:01:40]} exd5 {[%emt 0:00:31]} 12. dxc5 {[%emt 0:00:51]} Nxc5 {[%emt 0:00:47]} 13. b4 {[%emt 0:00:27]} Ne6 {[%emt 0:00:35]} 14. Bb2 {[%emt 0:03:34]} dxc4 {[%emt 0:04:43]} 1/2-1/2

[Event "Cracovia Festival-A 2023"]
[Site "Krakow"]
[Date "2024.01.03"]
[Round "8.42"]
[White "Gaurav Rajesh Zagade"]
[Black "Fishchuk, Vladyslav"]
[Result "1-0"]
[ECO "D35"]
[WhiteElo "2126"]
[BlackElo "2198"]
[Annotator "RC"]
[PlyCount "53"]
[EventDate "2023.12.24"]
[EventType "swiss"]
[EventCountry "POL"]
[SourceTitle "playchess.com"]
[Source "ChessBase"]
[SourceQuality "1"]
[TimeControl "40/5400+30:1800+30"]

1. d4 {[%emt 0:00:03]} d5 {[%emt 0:00:25]} 2. c4 {[%emt 0:00:09]} e6 {[%emt 0:00:04]} 3. Nc3 {[%emt 0:00:10]} Nf6 {[%emt 0:00:05]} 4. cxd5 {[%emt 0:00:10]} exd5 {[%emt 0:00:03]} 5. Bg5 {[%emt 0:00:18]} Bb4 {[%emt 0:00:06]} 6. e3 {[%emt 0:00:59]} h6 {[%emt 0:00:11]} 7. Bh4 {[%emt 0:00:20]} g5 {[%emt 0:00:09]} 8. Bg3 {[%emt 0:00:13]} Ne4 {[%emt 0:00:05]} 9. a3 {[%emt 0:00:40]} Bxc3+ {[%emt 0:00:46]} 10. bxc3 {[%emt 0:00:08]} Bf5 {[%emt 0:02:31]} 11. Qb3 {[%emt 0:05:56]} c5 {[%emt 0:28:04]} 12. Qxb7 {[%emt 0:04:52]} O-O {[%emt 0:02:49]} 13. Bc7 {[%emt 0:06:34]} Qd7 {[%emt 0:12:17]} 14. Bb5 {[%emt 0:12:17]} Qc8 {[%emt 0:00:19]} 15. Qxa8 {[%emt 0:02:36]} Qxc7 {[%emt 0:00:37]} 16. Qxd5 {[%emt 0:08:02]} Qa5 {[%emt 0:04:04]} 17. Ne2 {[%emt 0:06:39]} Nxc3 {[%emt 0:00:33]} 18. Qxf5 {[%emt 0:02:32]} Ne4+ {[%emt 0:00:46]} 19. Kf1 {[%emt 0:00:23]} Nd2+ {[%emt 0:00:04]} 20. Kg1 {[%emt 0:00:41]} Qxb5 {[%emt 0:00:14]} 21. Ng3 {[%emt 0:00:56]} Qb2 {[%emt 0:00:27]} 22. Rd1 {[%emt 0:01:08]} c4 {[%emt 0:00:05]} 23. Nh5 {[%emt 0:02:58]} Nd7 {[%emt 0:02:43]} 24. Qxd7 {[%emt 0:00:35]} Ne4 {[%emt 0:00:16]} 25. Rf1 {[%emt 0:03:55]} c3 {[%emt 0:00:16]} 26. Qc6 {[%emt 0:00:26]} c2 {[%emt 0:01:25]} 27. Qxh6 {[%emt 0:00:20]} 1-0

[Event "Cracovia Festival-A 2023"]
[Site "Krakow"]
[Date "2024.01.03"]
[Round "8.43"]
[White "Gbiorczyk, Mikolaj"]
[Black "Mirski, Stanislaw"]
[Result "1/2-1/2"]
[ECO "B42"]
[WhiteElo "2137"]
[BlackElo "2187"]
[Annotator "RC"]
[PlyCount "156"]
[EventDate "2023.12.24"]
[EventType "swiss"]
[EventCountry "POL"]
[SourceTitle "playchess.com"]
[Source "ChessBase"]
[SourceQuality "1"]
[TimeControl "40/5400+30:1800+30"]

1. e4 {[%emt 0:00:17]} c5 {[%emt 0:00:54]} 2. Nf3 {[%emt 0:00:07]} e6 {[%emt 0:00:02]} 3. d4 {[%emt 0:00:06]} cxd4 {[%emt 0:00:06]} 4. Nxd4 {[%emt 0:00:06]} a6 {[%emt 0:00:03]} 5. Bd3 {[%emt 0:00:12]} Bc5 {[%emt 0:00:20]} 6. Nb3 {[%emt 0:00:12]} Ba7 {[%emt 0:01:57]} 7. Qe2 {[%emt 0:01:26]} Nc6 {[%emt 0:02:07]} 8. Be3 {[%emt 0:02:36]} Qc7 {[%emt 0:02:39]} 9. Nc3 {[%emt 0:05:18]} Nf6 {[%emt 0:02:57]} 10. O-O-O {[%emt 0:04:53]} b5 {[%emt 0:02:13]} 11. Kb1 {[%emt 0:12:03]} Ne5 {[%emt 0:18:07]} 12. Bxa7 {[%emt 0:13:11]} Qxa7 {[%emt 0:01:43]} 13. f4 {[%emt 0:04:01]} Nxd3 {[%emt 0:01:47]} 14. Qxd3 {[%emt 0:05:22]} O-O {[%emt 0:01:37]} 15. f5 {[%emt 0:09:22]} exf5 {[%emt 0:03:47]} 16. e5 {[%emt 0:09:08]} Ng4 {[%emt 0:05:10]} 17. Nd5 {[%emt 0:01:09]} Re8 {[%emt 0:14:28]} 18. Qg3 {[%emt 0:04:22]} Bb7 {[%emt 0:20:53]} 19. h3 {[%emt 0:10:01]} Qf2 {[%emt 0:01:14]} 20. Qc3 {[%emt 0:02:21]} Rac8 {[%emt 0:06:16]} 21. Nc7 {[%emt 0:00:01]} b4 {[%emt 0:01:29]} 22. Qxb4 {[%emt 0:02:08]} Rxc7 {[%emt 0:00:02]} 23. hxg4 {[%emt 0:00:05]} Rxc2 {[%emt 0:00:57]} 24. Nd4 {[%emt 0:01:00]} Be4 {[%emt 0:02:11]} 25. Ka1 {[%emt 0:00:04]} Rcc8 {[%emt 0:02:35]} 26. Rd2 {[%emt 0:07:05]} Qg3 {[%emt 0:00:36]} 27. Nxf5 {[%emt 0:02:37]} Bxf5 {[%emt 0:01:26]} 28. gxf5 {[%emt 0:00:02]} Rxe5 {[%emt 0:00:21]} 29. Rxd7 {[%emt 0:00:35]} Qxg2 {[%emt 0:01:59]} 30. Rhd1 {[%emt 0:01:26]} h5 {[%emt 0:00:03]} 31. f6 {[%emt 0:00:48]} Qe4 {[%emt 0:02:49]} 32. Qd2 {[%emt 0:02:08]} gxf6 {[%emt 0:02:50]} 33. a3 {[%emt 0:02:12]} Qe3 {[%emt 0:00:40]} 34. Qg2+ {[%emt 0:00:32]} Rg5 {[%emt 0:00:10]} 35. Qf1 {[%emt 0:00:12]} Kg7 {[%emt 0:00:31]} 36. Re1 {[%emt 0:00:48]} Qc5 {[%emt 0:00:18]} 37. Qxa6 {[%emt 0:00:19]} Rg1 {[%emt 0:00:32]} 38. Rxg1+ {[%emt 0:00:37]} Qxg1+ {[%emt 0:00:02]} 39. Ka2 {[%emt 0:00:02]} Rc1 {[%emt 0:01:24]} 40. Qb7 {[%emt 0:00:00]} Ra1+ {[%emt 0:00:00]} 41. Kb3 {[%emt 0:00:56]} Qe3+ {[%emt 0:05:02]} 42. Ka4 {[%emt 0:01:28]} Qe6 {[%emt 0:00:37]} 43. b4 {[%emt 0:02:02]} Rg1 {[%emt 0:03:44]} 44. Re7 {[%emt 0:09:55]} Qc4 {[%emt 0:00:41]} 45. Rc7 {[%emt 0:00:21]} Qe6 {[%emt 0:00:41]} 46. Re7 {[%emt 0:00:04]} Qa2 {[%emt 0:00:22]} 47. Qc7 {[%emt 0:06:02]} h4 {[%emt 0:05:27]} 48. Re3 {[%emt 0:00:55]} Qd5 {[%emt 0:03:56]} 49. Rc3 {[%emt 0:06:58]} Rg5 {[%emt 0:02:11]} 50. Rc5 {[%emt 0:01:48]} Qa8+ {[%emt 0:04:19]} 51. Kb3 {[%emt 0:00:02]} h3 {[%emt 0:01:42]} 52. Rxg5+ {[%emt 0:01:13]} fxg5 {[%emt 0:00:02]} 53. b5 {[%emt 0:00:06]} Qd5+ {[%emt 0:05:39]} 54. Ka4 {[%emt 0:00:56]} Qd4+ {[%emt 0:00:53]} 55. Ka5 {[%emt 0:00:24]} Qd2+ {[%emt 0:00:05]} 56. Ka6 {[%emt 0:00:18]} h2 {[%emt 0:00:02]} 57. Qe5+ {[%emt 0:00:39]} f6 {[%emt 0:00:23]} 58. Qe7+ {[%emt 0:00:47]} Kg6 {[%emt 0:00:03]} 59. Qe4+ {[%emt 0:02:03]} f5 {[%emt 0:00:11]} 60. Qe8+ {[%emt 0:01:30]} Kf6 {[%emt 0:01:14]} 61. Qh8+ {[%emt 0:00:35]} Ke7 {[%emt 0:00:39]} 62. Qe5+ {[%emt 0:01:00]} Kd8 {[%emt 0:00:55]} 63. Qh8+ {[%emt 0:00:48]} Kd7 {[%emt 0:00:40]} 64. Qg7+ {[%emt 0:00:46]} Ke6 {[%emt 0:00:23]} 65. Qg8+ {[%emt 0:00:05]} Ke5 {[%emt 0:00:18]} 66. Qh8+ {[%emt 0:00:44]} Kf4 {[%emt 0:00:23]} 67. b6 {[%emt 0:01:47]} Qd3+ {[%emt 0:00:05]} 68. Ka7 {[%emt 0:00:26]} Qxa3+ {[%emt 0:00:11]} 69. Kb8 {[%emt 0:00:01]} Qd6+ {[%emt 0:03:04]} 70. Ka7 {[%emt 0:00:01]} Kg3 {[%emt 0:00:46]} 71. b7 {[%emt 0:00:39]} Qc5+ {[%emt 0:00:49]} 72. Ka6 {[%emt 0:00:15]} Qc6+ {[%emt 0:00:42]} 73. Ka7 {[%emt 0:00:03]} h1=Q {[%emt 0:00:29]} 74. b8=Q+ {[%emt 0:00:12]} f4 {[%emt 0:00:07]} 75. Qb3+ {[%emt 0:01:35]} Qhf3 {[%emt 0:00:16]} 76. Qhb8 {[%emt 0:01:41]} Qxb3 {[%emt 0:00:20]} 77. Qxf4+ {[%emt 0:00:04]} Kh3 {[%emt 0:01:46]} 78. Qg3+ {[%emt 0:00:07]} Kxg3 {[%emt 0:00:42]} 1/2-1/2

[Event "Cracovia Festival-A 2023"]
[Site "Krakow"]
[Date "2024.01.03"]
[Round "8.44"]
[White "Katsanis, Vasileios Dim"]
[Black "Kovalevsky, Stanislav"]
[Result "1/2-1/2"]
[ECO "E32"]
[WhiteElo "2133"]
[BlackElo "2163"]
[Annotator "RC"]
[PlyCount "133"]
[EventDate "2023.12.24"]
[EventType "swiss"]
[EventCountry "POL"]
[SourceTitle "playchess.com"]
[Source "ChessBase"]
[SourceQuality "1"]
[TimeControl "40/5400+30:1800+30"]

1. d4 {[%emt 0:02:08]} Nf6 {[%emt 0:00:05]} 2. c4 {[%emt 0:00:03]} e6 {[%emt 0:00:13]} 3. Nc3 {[%emt 0:00:03]} Bb4 {[%emt 0:00:21]} 4. Qc2 {[%emt 0:00:03]} O-O {[%emt 0:02:17]} 5. a3 {[%emt 0:00:09]} Bxc3+ {[%emt 0:00:11]} 6. Qxc3 {[%emt 0:00:04]} b6 {[%emt 0:00:36]} 7. Bg5 {[%emt 0:00:05]} h6 {[%emt 0:00:15]} 8. Bh4 {[%emt 0:00:03]} Bb7 {[%emt 0:00:15]} 9. e3 {[%emt 0:00:05]} d6 {[%emt 0:00:44]} 10. f3 {[%emt 0:00:57]} Nbd7 {[%emt 0:00:13]} 11. Bd3 {[%emt 0:01:28]} c5 {[%emt 0:05:24]} 12. Ne2 {[%emt 0:01:23]} cxd4 {[%emt 0:03:01]} 13. Qxd4 {[%emt 0:03:57]} Nc5 {[%emt 0:06:35]} 14. Bc2 {[%emt 0:01:01]} e5 {[%emt 0:08:16]} 15. Qc3 {[%emt 0:03:39]} Rc8 {[%emt 0:09:17]} 16. Rc1 {[%emt 0:07:29]} Ba6 {[%emt 0:17:33]} 17. Qb4 {[%emt 0:07:17]} Qe7 {[%emt 0:23:25]} 18. e4 {[%emt 0:05:49]} g5 {[%emt 0:06:10]} 19. Bf2 {[%emt 0:02:10]} Nh5 {[%emt 0:07:15]} 20. O-O {[%emt 0:03:34]} Nf4 {[%emt 0:00:02]} 21. Nxf4 {[%emt 0:00:20]} gxf4 {[%emt 0:00:02]} 22. Qc3 {[%emt 0:06:49]} Ne6 {[%emt 0:01:47]} 23. Bd3 {[%emt 0:00:16]} Rc6 {[%emt 0:01:25]} 24. Qd2 {[%emt 0:04:38]} Rfc8 {[%emt 0:00:34]} 25. b3 {[%emt 0:02:22]} Kh8 {[%emt 0:00:02]} 26. Rc3 {[%emt 0:01:37]} b5 {[%emt 0:01:47]} 27. Rfc1 {[%emt 0:00:03]} Qc7 {[%emt 0:00:11]} 28. R3c2 {[%emt 0:01:58]} bxc4 {[%emt 0:01:12]} 29. Bxc4 {[%emt 0:00:02]} Qb7 {[%emt 0:02:43]} 30. Bxa6 {[%emt 0:05:18]} Rxc2 {[%emt 0:00:09]} 31. Rxc2 {[%emt 0:01:55]} Rxc2 {[%emt 0:00:01]} 32. Qxc2 {[%emt 0:00:07]} Qxa6 {[%emt 0:00:02]} 33. a4 {[%emt 0:02:39]} Qb7 {[%emt 0:00:02]} 34. Qc4 {[%emt 0:00:26]} Kg7 {[%emt 0:02:05]} 35. h4 {[%emt 0:00:23]} a6 {[%emt 0:00:38]} 36. b4 {[%emt 0:00:31]} Nc7 {[%emt 0:00:04]} 37. Kh2 {[%emt 0:06:04]} h5 {[%emt 0:00:07]} 38. Qc3 {[%emt 0:01:14]} Kf6 {[%emt 0:00:46]} 39. Qc4 {[%emt 0:00:27]} Ke7 {[%emt 0:00:28]} 40. g3 {[%emt 0:00:00]} fxg3+ {[%emt 0:00:00]} 41. Kxg3 {[%emt 0:01:34]} Ke8 {[%emt 0:05:53]} 42. Be3 {[%emt 0:01:15]} Ke7 {[%emt 0:08:11]} 43. Bg5+ {[%emt 0:03:26]} Ke8 {[%emt 0:00:17]} 44. Kf2 {[%emt 0:10:10]} Qb6+ {[%emt 0:00:28]} 45. Be3 {[%emt 0:00:13]} Qb7 {[%emt 0:00:03]} 46. Qc3 {[%emt 0:00:29]} Kd7 {[%emt 0:00:58]} 47. Qc4 {[%emt 0:00:55]} Ke8 {[%emt 0:00:22]} 48. a5 {[%emt 0:03:06]} Nb5 {[%emt 0:03:28]} 49. Bb6 {[%emt 0:00:41]} Kf8 {[%emt 0:02:07]} 50. Qc1 {[%emt 0:01:10]} Ke8 {[%emt 0:10:31]} 51. Qg5 {[%emt 0:01:12]} Nc7 {[%emt 0:03:00]} 52. Qxh5 {[%emt 0:03:22]} Ne6 {[%emt 0:00:01]} 53. Qh6 {[%emt 0:02:17]} Qc6 {[%emt 0:00:12]} 54. Qd2 {[%emt 0:00:59]} Nf4 {[%emt 0:02:52]} 55. Be3 {[%emt 0:00:51]} Qc4 {[%emt 0:00:03]} 56. Bxf4 {[%emt 0:00:23]} exf4 {[%emt 0:00:01]} 57. Qxd6 {[%emt 0:07:45]} Qc2+ {[%emt 0:00:05]} 58. Kg1 {[%emt 0:01:20]} Qc1+ {[%emt 0:00:14]} 59. Kg2 {[%emt 0:01:17]} Qc2+ {[%emt 0:00:09]} 60. Kf1 {[%emt 0:00:51]} Qc1+ {[%emt 0:00:19]} 61. Ke2 {[%emt 0:00:28]} Qe3+ {[%emt 0:00:24]} 62. Kd1 {[%emt 0:00:08]} Qxf3+ {[%emt 0:00:04]} 63. Kd2 {[%emt 0:00:11]} Qe3+ {[%emt 0:01:13]} 64. Kd1 {[%emt 0:00:05]} Qb3+ {[%emt 0:01:12]} 65. Kd2 {[%emt 0:01:20]} Qe3+ {[%emt 0:00:20]} 66. Kd1 {[%emt 0:00:24]} Qc3 67. Qd2 1/2-1/2

[Event "Cracovia Festival-A 2023"]
[Site "Krakow"]
[Date "2024.01.03"]
[Round "8.45"]
[White "Flak, Pawel"]
[Black "Zalega, Maciej"]
[Result "1/2-1/2"]
[ECO "A80"]
[WhiteElo "2145"]
[BlackElo "2113"]
[Annotator "NA RC"]
[PlyCount "74"]
[EventDate "2023.12.24"]
[EventType "swiss"]
[EventCountry "POL"]
[SourceTitle "playchess.com"]
[Source "ChessBase"]
[SourceQuality "1"]
[TimeControl "40/5400+30:1800+30"]

1. d4 {[%emt 0:02:34]} f5 {[%emt 0:01:27]} 2. h3 {[%emt 0:00:03]} d5 {[%emt 0:01:01]} 3. g4 {[%emt 0:00:03]} fxg4 {[%emt 0:00:41]} 4. hxg4 {[%emt 0:00:20]} Bxg4 {[%emt 0:01:42]} 5. Qd3 {[%emt 0:00:33]} Qd7 {[%emt 0:02:45]} 6. Rxh7 {[%emt 0:07:12]} Rxh7 {[%emt 0:06:40]} 7. Qg6+ {[%emt 0:00:23]} Kd8 {[%emt 0:00:14]} 8. Qxh7 {[%emt 0:00:03]} Nf6 {[%emt 0:00:36]} 9. Qh4 {[%emt 0:09:35]} Nc6 {[%emt 0:13:22]} 10. c3 {[%emt 0:00:26]} e5 {[%emt 0:00:15]} 11. Bg5 {[%emt 0:15:03]} Qe6 {[%emt 0:01:51]} 12. Bh3 {[%emt 0:07:06]} Bxh3 {[%emt 0:02:10]} 13. dxe5 {[%emt 0:00:04]} Nxe5 {[%emt 0:04:09]} 14. Qxh3 {[%emt 0:00:19]} Kd7 {[%emt 0:00:09]} 15. Nd2 {[%emt 0:10:02]} Bc5 {[%emt 0:01:22]} 16. Qxe6+ {[%emt 0:00:58]} Kxe6 {[%emt 0:00:07]} 17. Bxf6 {[%emt 0:07:59]} gxf6 {[%emt 0:02:12]} 18. Nb3 {[%emt 0:15:58]} Bb6 {[%emt 0:03:11]} 19. Nd4+ {[%emt 0:00:11]} Bxd4 {[%emt 0:02:05]} 20. cxd4 {[%emt 0:00:01]} Rg8 {[%emt 0:01:06]} 21. Kf1 {[%emt 0:00:02]} Nc6 {[%emt 0:02:01]} 22. e3 {[%emt 0:01:21]} Kf5 {[%emt 0:03:25]} 23. Rc1 {[%emt 0:00:24]} Rg7 {[%emt 0:01:37]} 24. Ke2 {[%emt 0:02:00]} Nd8 {[%emt 0:02:07]} 25. Nf3 {[%emt 0:00:21]} Rh7 {[%emt 0:02:08]} 26. Rg1 {[%emt 0:00:46]} Ne6 {[%emt 0:02:38]} 27. Rg8 {[%emt 0:04:50]} a5 {[%emt 0:03:01]} 28. Rg1 {[%emt 0:01:25]} Ng5 {[%emt 0:06:48]} 29. Ne1 {[%emt 0:02:41]} c6 {[%emt 0:03:30]} 30. Rg2 {[%emt 0:01:51]} Rh1 {[%emt 0:01:07]} 31. Nd3 {[%emt 0:00:06]} Ra1 {[%emt 0:01:52]} 32. a3 {[%emt 0:01:35]} Rh1 {[%emt 0:00:05]} 33. Ne1 {[%emt 0:01:16]} Ke6 {[%emt 0:03:40]} 34. Nd3 {[%emt 0:02:58]} b6 {[%emt 0:02:31]} 35. Rg4 {[%emt 0:01:56]} Kf5 {[%emt 0:02:27]} 36. Rf4+ {[%emt 0:00:02]} Ke6 {[%emt 0:00:08]} 37. Rg4 {[%emt 0:00:02]} Rh2 {[%emt 0:10:47]} 1/2-1/2